bitfinex-derivatives/quotes_SOLF0:USTF0_20260114
["timestamp","ask_amount","ask_price","bid_price","bid_amount"]
[1768412154237,6.1466,146.43,146.3,3.04260236]
[1768412154238,80.64,146.42,146.3,3.04260236]
[1768412154539,80.66,146.42,146.3,3.04260236]
[1768412154738,6.1477,146.4,146.27,3.04260236]
[1768412155234,95.6297,146.4,146.27,3.04260236]
[1768412156332,95.6425,146.38,146.27,3.04260236]
[1768412156528,100.96812616,146.39,146.27,3.04260236]
[1768412156937,6.1483,146.38,146.27,3.04260236]
[1768412157137,5.33292616,146.39,146.27,3.04260236]
[1768412157341,100.96852616,146.39,146.28,3.04260236]
[1768412157541,100.96852616,146.39,146.26,14.94225591]
[1768412157542,95.6496,146.37,146.26,14.94225591]
[1768412157934,95.6421,146.38,146.26,14.94225591]
[1768412158240,6.1496,146.35,146.26,14.94225591]
[1768412158835,80.68,146.37,146.27,3.04260236]
[1768412158836,86.8289,146.37,146.27,3.04260236]
[1768412159233,6.1489,146.37,146.27,3.04260236]
[1768412159434,6.1494,146.36,146.26,14.94225591]
[1768412159636,95.6494,146.37,146.26,14.94225591]
[1768412160036,95.6717,146.34,146.26,14.94225591]
[1768412160230,95.6452,146.38,146.26,11.78634376]
[1768412160444,86.01292616,146.37,146.26,11.78634376]
[1768412160942,95.6559,146.36,146.26,11.78634376]
[1768412161144,95.6559,146.36,146.21,51.68394612]
[1768412161440,6.1503,146.34,146.21,51.68394612]
[1768412162138,11.48322616,146.34,146.21,51.68394612]
[1768412162329,80.7,146.33,146.21,1.68394612]
[1768412162935,5.33292616,146.29,146.15,95.7909]
[1768412163151,5.33292616,146.29,146.13,95.7987]
[1768412163152,80.7,146.28,146.16,3.04260236]
[1768412163841,95.7203,146.26,146.16,3.04260236]
[1768412164042,6.1535,146.26,146.16,3.04260236]
[1768412164239,80.7,146.27,146.16,3.04260236]
[1768412164444,101.03052616,146.3,146.16,3.04260236]
[1768412164633,80.7,146.29,146.16,3.04260236]
[1768412165044,6.1526,146.28,146.16,3.04260236]
[1768412165445,95.7403,146.23,146.11,15.18364532]
[1768412165741,95.7582,146.21,146.11,15.18364532]
[1768412165935,80.72,146.22,146.11,15.18364532]
[1768412165936,176.4692,146.22,146.11,15.18364532]
[1768412166136,181.80212616,146.22,146.11,15.18364532]
[1768412166335,5.33292616,146.19,146.11,15.18364532]
[1768412166536,80.72,146.2,146.11,15.18364532]
[1768412166741,6.1568,146.18,146.11,15.18364532]
[1768412167043,80.72,146.2,146.11,15.18364532]
[1768412167343,6.156,146.2,146.11,18.22624768]
[1768412167540,6.156,146.2,146.11,15.18364532]
[1768412167742,95.7665,146.19,146.11,15.18364532]
[1768412168136,95.7796,146.17,146.11,4.86324532]
[1768412168340,95.7732,146.18,146.11,4.86324532]
[1768412168541,95.7665,146.19,146.11,4.86324532]
[1768412168742,6.1568,146.18,146.11,4.86324532]
[1768412169035,101.08912616,146.21,146.11,4.86324532]
[1768412169245,80.74,146.2,146.11,4.86324532]
[1768412169436,95.7401,146.23,146.12,3.04260236]
[1768412169437,5.33292616,146.23,146.12,3.04260236]
[1768412169637,95.747,146.22,146.12,3.04260236]
[1768412169946,95.7557,146.21,146.11,4.86324532]
[1768412170145,6.1568,146.18,146.11,4.86324532]
[1768412170349,5.33292616,146.2,146.11,4.86324532]
[1768412171848,6.1566,146.19,146.11,4.86324532]
[1768412172050,95.7671,146.19,146.11,4.86324532]
[1768412172347,6.1579,146.16,146.11,4.532e-05]
[1768412173048,6.1587,146.14,146.06,3.04260236]
[1768412173246,80.78,146.13,146.06,3.04260236]
[1768412173851,80.78,146.13,145.99,95.8934]
[1768412173852,1.36,146.13,145.99,3.04260236]
[1768412174047,5.33292616,146.12,145.99,3.04260236]
[1768412174353,80.78,146.11,145.99,3.04260236]
[1768412174746,80.78,146.1,146.01,3.04260236]
[1768412175141,5.33292616,146.14,145.98,4.23417914]
[1768412175358,80.78,146.13,145.99,3.04260236]
[1768412175538,176.5886,146.13,145.99,3.04260236]
[1768412175850,95.825,146.1,145.99,3.04260236]
[1768412176243,95.825,146.1,145.98,1.19161759]
[1768412176244,95.8731,146.03,145.9,3.04260236]
[1768412176549,95.8955,146.0,145.86,3.04260236]
[1768412176755,80.8,145.99,145.87,3.04260236]
[1768412177045,95.9172,145.96,145.87,3.04260236]
[1768412177240,5.33292616,145.98,145.87,3.04260236]
[1768412177439,80.8,145.98,145.85,9.21320236]
[1768412177640,176.7036,145.98,145.85,3.04260236]
[1768412177851,176.709,145.98,145.86,3.04260236]
[1768412178047,80.8,145.98,145.86,3.04260236]
[1768412178447,176.704,145.98,145.86,3.04260236]
[1768412178652,80.8,145.98,145.86,3.04260236]
[1768412179052,176.6909,146.03,145.89,3.04260236]
[1768412179248,95.8796,146.02,145.9,3.04260236]
[1768412179449,95.8928,146.0,145.9,3.04260236]
[1768412179648,95.8845,146.01,145.9,3.04260236]
[1768412180151,5.33292616,146.03,145.9,3.04260236]
[1768412180352,191.7004,146.07,145.9,3.04260236]
[1768412180353,80.84,146.05,145.92,3.19337035]
[1768412180538,176.6981,146.05,145.92,3.19337035]
[1768412180743,182.8607,146.05,145.92,3.19337035]
[1768412180938,80.84,146.05,145.92,99.13237035]
[1768412181143,80.84,146.05,145.94,3.19337035]
[1768412181349,80.86,146.09,145.95,3.19337035]
[1768412181543,191.6338,146.12,145.98,3.19337035]
[1768412182052,101.9862,146.1,145.98,3.19337035]
[1768412182254,6.1605,146.1,145.99,3.19337035]
[1768412182455,80.86,146.13,146.02,3.19337035]
[1768412182651,176.6676,146.13,146.02,3.19337035]
[1768412182845,95.8129,146.12,146.02,3.19337035]
[1768412183052,95.8129,146.12,145.99,3.19337035]
[1768412183253,95.8196,146.11,145.98,3.19337035]
[1768412183458,95.8131,146.12,145.99,3.19337035]
[1768412183648,6.1601,146.11,146.0,3.19337035]
[1768412184157,6.1588,146.14,146.02,3.19337035]
[1768412184355,80.86,146.15,146.03,3.19337035]
[1768412184752,6.1585,146.14,146.03,3.19337035]
[1768412185455,6.1592,146.13,146.03,3.19337035]
[1768412186856,80.86,146.15,146.03,3.19337035]
[1768412187056,80.86,146.15,146.04,9.35577035]
[1768412187256,80.86,146.15,146.05,3.19337035]
[1768412187461,5.33292616,146.12,145.99,3.19337035]
[1768412187760,101.14842616,146.12,145.99,3.19337035]
[1768412188053,177.84923599,146.15,146.03,3.19337035]
[1768412188054,95.7977,146.15,146.03,3.19337035]
[1768412188247,176.6577,146.15,146.03,3.19337035]
[1768412188653,6.1589,146.13,146.03,3.19337035]
[1768412188849,95.8077,146.13,146.03,3.19337035]
[1768412189055,95.8001,146.14,146.03,3.19337035]
[1768412189249,181.99062616,146.15,146.03,3.19337035]
[1768412189250,80.86,146.15,146.03,3.19337035]
[1768412189460,101.09862616,146.2,146.05,3.19337035]
[1768412189651,80.86,146.19,146.05,3.19337035]
[1768412189854,176.6311,146.19,146.07,3.19337035]
[1768412190051,95.7813,146.17,146.07,3.19337035]
[1768412190462,95.7994,146.14,146.03,3.19337035]
[1768412190758,176.6594,146.14,146.03,3.19337035]
[1768412191155,5.33292616,146.11,146.0,3.19337035]
[1768412191358,95.8389,146.08,145.97,3.19337035]
[1768412191561,6.1625,146.05,145.97,3.19337035]
[1768412192561,6.1616,146.07,145.97,3.19337035]
[1768412192758,176.6989,146.08,145.97,3.19337035]
[1768412192958,95.8446,146.07,145.97,3.19337035]
[1768412193762,6.1625,146.05,145.97,3.19337035]
[1768412194861,176.6989,146.08,145.97,3.19337035]
[1768412195255,95.8389,146.08,145.97,3.19337035]
[1768412195460,176.6989,146.08,145.97,3.19337035]
[1768412195960,5.33292616,146.1,145.98,3.19337035]
[1768412195961,80.86,146.1,145.98,3.19337035]
[1768412196766,6.1603,146.1,146.01,3.19337035]
[1768412197063,80.88,146.14,146.02,3.19337035]
[1768412197665,5.33292616,146.18,146.04,3.19337035]
[1768412197871,80.88,146.18,146.04,3.19337035]
[1768412198164,80.88,146.18,146.06,9.35497035]
[1768412198360,80.88,146.18,146.07,3.19337035]
[1768412198668,6.1573,146.17,146.07,3.19337035]
[1768412199361,6.1577,146.16,146.07,3.19337035]
[1768412200258,6.1577,146.16,146.06,6.1616]
[1768412200663,6.1577,146.16,146.06,9.35497035]
[1768412200964,87.037,146.18,146.07,9.35457035]
[1768412201161,80.88,146.18,146.07,3.19337035]
[1768412201560,6.1573,146.17,146.07,9.35457035]
[1768412202175,6.1577,146.16,146.05,6.162]
[1768412202367,6.1577,146.16,146.05,3.19337035]
[1768412202558,6.1583,146.15,146.05,9.35537035]
[1768412202759,95.7864,146.16,146.05,3.19337035]
[1768412203164,6.1583,146.15,146.05,3.19337035]
[1768412203361,95.7994,146.14,145.98,99.09627035]
[1768412203565,80.86,146.13,145.99,3.19337035]
[1768412203770,86.19292616,146.13,145.99,3.19337035]
[1768412204270,86.19292616,146.16,146.03,3.19337035]
[1768412205566,92.35072616,146.16,146.05,9.35527035]
[1768412205866,80.86,146.17,146.06,3.19337035]
[1768412206267,5.33292616,146.19,146.06,3.19337035]
[1768412206674,80.86,146.2,146.06,3.19337035]
[1768412206875,6.1568,146.18,146.08,9.35417035]
[1768412208183,6.1574,146.17,146.08,3.19337035]
[1768412209881,6.1574,146.17,146.08,9.35417035]
[1768412210571,6.1574,146.17,146.04,176.7182]
[1768412210572,6.1566,146.19,146.1,3.31313977]
[1768412210970,6.1566,146.19,146.1,9.47313977]
[1768412211172,80.86,146.21,146.1,9.47313977]
[1768412211778,6.1564,146.19,146.1,9.47313977]
[1768412212281,6.1569,146.18,146.1,3.31313977]
[1768412212578,95.76,146.2,146.09,3.31313977]
[1768412213077,176.6157,146.21,146.08,6.1607]
[1768412213375,95.7798,146.17,146.04,3.31313977]
[1768412213683,80.84,146.16,146.04,3.31313977]
[1768412214177,6.1586,146.14,146.05,9.47523977]
[1768412214381,80.84,146.16,146.05,3.31313977]
[1768412214581,6.1579,146.16,146.06,3.31313977]
[1768412215178,6.1573,146.17,146.08,6.1607]
[1768412215785,6.1573,146.17,146.08,9.47383977]
[1768412216189,95.774,146.18,146.06,6.1615]
[1768412217079,6.1586,146.14,146.05,3.31313977]
[1768412217275,95.774,146.18,146.05,3.31313977]
[1768412217886,6.1581,146.15,146.06,6.1617]
[1768412218976,6.1588,146.14,146.05,3.31313977]
[1768412219786,6.1588,146.14,146.05,9.47523977]
[1768412220178,6.159,146.13,146.05,3.31313977]
[1768412220378,95.7894,146.16,146.05,3.31313977]
[1768412220680,95.7894,146.16,146.05,9.47533977]
[1768412220879,6.1588,146.14,146.05,3.31313977]
[1768412221487,6.1588,146.14,146.02,176.7132]
[1768412221488,6.1579,146.16,146.07,9.47423977]
[1768412221674,95.7547,146.21,146.07,3.31313977]
[1768412221877,176.5874,146.22,146.09,3.31313977]
[1768412222180,95.7627,146.2,146.09,3.31313977]
[1768412222387,95.7767,146.18,146.07,80.84]
[1768412222780,6.1579,146.16,146.07,80.84]
[1768412222984,95.7767,146.18,146.06,3.31313977]
[1768412223586,6.1583,146.15,146.07,6.1613]
[1768412224287,6.1575,146.17,146.08,9.47393977]
[1768412224888,6.1567,146.19,146.08,3.31313977]
[1768412225385,8.69819138,146.23,146.08,3.31313977]
[1768412225585,80.84,146.22,146.08,3.31313977]
[1768412226590,6.156,146.2,146.11,6.1596]
[1768412228090,6.1556,146.21,146.12,6.1591]
[1768412228289,95.7204,146.26,146.13,3.31313977]
[1768412228492,176.5604,146.26,146.13,3.31313977]
[1768412228885,6.1548,146.23,146.14,6.1582]
[1768412230289,95.7573,146.21,146.08,20.46]
[1768412230589,95.7726,146.18,146.05,3.31313977]
[1768412231587,80.82,146.17,146.05,3.31313977]
[1768412231780,80.82,146.17,146.03,95.8678]
[1768412231781,6.1582,146.15,146.06,9.47483977]
[1768412232285,80.82,146.17,146.06,9.47483977]
[1768412232597,80.82,146.17,145.99,3.31313977]
[1768412232598,95.8254,146.1,145.99,3.31313977]
[1768412232887,6.162,146.06,145.99,3.31313977]
[1768412233081,95.822,146.11,145.99,3.31313977]
[1768412233279,80.84,146.1,145.99,3.31313977]
[1768412233487,6.1604,146.1,145.99,3.31313977]
[1768412233790,80.84,146.11,146.0,3.31313977]
[1768412233985,80.84,146.12,146.0,3.31313977]
[1768412234191,6.1599,146.11,146.0,3.31313977]
[1768412234385,95.7786,146.18,146.03,3.31313977]
[1768412234386,95.7857,146.16,146.03,3.31313977]
[1768412234694,95.7928,146.15,146.03,3.31313977]
[1768412234892,80.84,146.16,146.04,3.31313977]
[1768412235193,80.84,146.16,146.05,3.31313977]
[1768412235401,104.45769138,146.2,146.05,3.31313977]
[1768412235589,176.6089,146.19,146.08,3.31313977]
[1768412235791,95.777,146.18,146.08,3.31313977]
[1768412235994,6.1574,146.17,146.08,3.31313977]
[1768412238298,80.84,146.19,146.08,9.47383977]
[1768412238498,80.84,146.19,146.08,3.31313977]
[1768412239394,6.1575,146.17,146.08,3.31313977]
[1768412239695,95.7405,146.23,146.1,3.31313977]
[1768412240898,95.7485,146.22,146.1,3.31313977]
[1768412241195,6.156,146.2,146.1,3.31313977]
[1768412241395,89.53819138,146.24,146.1,3.31313977]
[1768412242100,80.84,146.24,146.1,3.31313977]
[1768412243001,6.1553,146.22,146.12,9.25366853]
[1768412245204,95.7133,146.28,146.14,3.09456853]
[1768412245401,176.5333,146.28,146.14,3.09456853]
[1768412245602,80.82,146.28,146.14,3.09456853]
[1768412245796,8.69819138,146.3,146.14,3.09456853]
[1768412245996,80.82,146.29,146.14,3.09456853]
[1768412246505,6.1532,146.27,146.17,3.09456853]
[1768412246801,176.5251,146.29,146.17,3.09456853]
[1768412247307,80.82,146.29,146.17,3.09456853]
[1768412247603,203.6169,146.36,146.19,3.09456853]
[1768412247604,95.6752,146.33,146.19,3.09456853]
[1768412247798,80.82,146.32,146.19,3.09456853]
[1768412248402,6.1524,146.29,146.2,6.1556]
[1768412248599,176.5043,146.32,146.2,6.1556]
[1768412248600,176.5043,146.32,146.2,9.25016853]
[1768412248796,80.82,146.32,146.2,9.25016853]
[1768412249001,6.1518,146.3,146.21,6.1554]
[1768412249208,80.82,146.32,146.21,9.24996853]
[1768412249506,80.82,146.32,146.23,6.1545]
[1768412249507,6.1512,146.32,146.23,6.1545]
[1768412249804,6.1512,146.32,146.21,3.09456853]
[1768412250419,6.1515,146.31,146.21,3.09456853]
[1768412250800,80.8,146.36,146.23,3.09456853]
[1768412251105,176.4577,146.36,146.23,3.09456853]
[1768412251704,95.6719,146.34,146.23,3.09456853]
[1768412252294,6.1506,146.33,146.23,3.09456853]
[1768412252497,95.6719,146.34,146.23,3.09456853]
[1768412252708,80.8,146.33,146.23,3.09456853]
[1768412252908,6.151,146.32,146.23,3.09456853]
[1768412253505,86.951,146.32,146.23,3.09456853]
[1768412254613,80.8,146.31,146.23,3.09456853]
[1768412254805,6.151,146.32,146.23,3.09456853]
[1768412255108,80.8,146.31,146.23,3.09456853]
[1768412255701,6.15,146.34,146.23,3.09456853]
[1768412255995,80.78,146.33,146.23,3.09456853]
[1768412256408,6.15,146.34,146.26,3.09456853]
[1768412256609,80.78,146.35,146.26,3.09456853]
[1768412256811,6.1494,146.36,146.26,9.24776853]
[1768412257009,86.9294,146.36,146.26,9.24776853]
[1768412257305,6.1494,146.36,146.26,3.09456853]
[1768412257497,86.9294,146.36,146.26,3.09456853]
[1768412257920,6.1494,146.36,146.26,3.09456853]
[1768412259013,6.1494,146.36,146.27,9.24726853]
[1768412260310,80.78,146.37,146.28,6.1524]
[1768412260698,80.78,146.37,146.28,9.24696853]
[1768412261212,86.9289,146.37,146.28,9.24696853]
[1768412262102,6.1489,146.37,146.28,9.24696853]
[1768412262304,86.9089,146.37,146.28,9.24696853]
[1768412262822,95.6202,146.42,146.29,3.09456853]
[1768412263009,80.76,146.41,146.29,3.09456853]
[1768412263713,95.6202,146.42,146.29,3.09456853]
[1768412263909,80.76,146.41,146.31,6.151]
[1768412264110,104.30789138,146.43,146.31,6.151]
[1768412264311,80.76,146.42,146.31,6.151]
[1768412265312,80.76,146.41,146.29,3.09456853]
[1768412265616,104.33339138,146.39,146.26,3.09456853]
[1768412265807,6.1497,146.35,146.26,3.09456853]
[1768412266003,86.8897,146.35,146.26,3.09456853]
[1768412266310,8.69819138,146.39,146.26,3.09456853]
[1768412266620,80.74,146.38,146.26,3.09456853]
[1768412267112,8.69819138,146.32,146.2,3.09456853]
[1768412267312,80.74,146.31,146.2,3.09456853]
[1768412268014,95.6736,146.34,146.21,3.09456853]
[1768412268015,80.74,146.3,146.21,3.09456853]
[1768412268208,95.6551,146.36,146.22,3.09456853]
[1768412268414,80.74,146.35,146.22,3.09456853]
[1768412268613,176.4041,146.35,146.22,3.09456853]
[1768412269007,80.74,146.35,146.22,3.09456853]
[1768412269403,86.08191443,146.35,146.22,3.09456853]
[1768412269712,80.74,146.34,146.23,3.09456853]
[1768412270216,6.1488,146.37,146.25,9.15407233]
[1768412270519,86.08191443,146.36,146.25,9.15407233]
[1768412270908,86.08191443,146.36,146.26,3.00067233]
[1768412271411,5.34191443,146.33,146.24,3.00067233]
[1768412272009,80.74,146.36,146.24,3.00067233]
[1768412272010,5.34191443,146.36,146.24,3.00067233]
[1768412272312,80.74,146.34,146.25,3.00067233]
[1768412272705,80.74,146.34,146.24,6.1539]
[1768412272906,5.34191443,146.28,146.18,3.00067233]
[1768412273114,80.74,146.27,146.18,3.00067233]
[1768412273408,80.74,146.27,146.11,5.34191443]
[1768412273409,95.7348,146.24,146.11,3.00067233]
[1768412274114,95.7168,146.27,146.13,3.00067233]
[1768412274318,95.7168,146.27,146.15,3.00067233]
[1768412274319,80.74,146.26,146.15,3.00067233]
[1768412274518,5.34191443,146.27,146.16,3.00067233]
[1768412274822,80.74,146.26,146.17,9.15757233]
[1768412275015,11.49511443,146.27,146.17,9.15757233]
[1768412275219,86.08191443,146.27,146.17,9.15757233]
[1768412275420,6.1536,146.26,146.17,3.00067233]
[1768412275719,6.1536,146.26,146.15,6.1579]
[1768412276111,80.76,146.25,146.15,6.1579]
[1768412276617,80.76,146.25,146.15,9.15857233]
[1768412278910,86.9141,146.25,146.15,9.15857233]
[1768412279117,80.76,146.25,146.16,6.1573]
[1768412279518,11.49511443,146.27,146.17,6.157]
[1768412280113,92.25511443,146.27,146.16,3.00067233]
[1768412280918,92.25511443,146.27,146.18,6.1566]
[1768412281121,92.25511443,146.27,146.16,3.00067233]
[1768412281319,86.9135,146.26,146.16,3.00067233]
[1768412281822,5.34191443,146.27,146.17,3.00067233]
[1768412282025,80.76,146.27,146.17,3.00067233]
[1768412282225,86.10191443,146.27,146.17,3.00067233]
[1768412282919,6.1535,146.26,146.17,3.00067233]
[1768412283618,80.78,146.25,146.17,3.00067233]
[1768412284314,80.78,146.25,146.17,9.15767233]
[1768412284717,6.1535,146.26,146.17,9.15767233]
[1768412284916,86.9335,146.26,146.17,9.15767233]
[1768412285124,5.34191443,146.27,146.17,3.00067233]
[1768412285324,5.34191443,146.29,146.18,3.00067233]
[1768412285525,80.78,146.33,146.21,3.00067233]
[1768412285724,80.78,146.33,146.23,3.00067233]
[1768412286122,11.49201443,146.34,146.23,3.00067233]
[1768412286322,92.27201443,146.34,146.23,3.00067233]
[1768412286531,6.151,146.32,146.23,3.00067233]
[1768412287023,80.78,146.33,146.23,3.00067233]
[1768412287540,80.78,146.33,146.25,6.1537]
[1768412287727,11.49221443,146.34,146.25,6.1537]
[1768412287926,92.27221443,146.34,146.25,6.1537]
[1768412288928,11.49221443,146.34,146.25,6.1537]
[1768412289435,92.25221443,146.34,146.25,6.1537]
[1768412290027,95.6514,146.37,146.27,9.15337233]
[1768412290028,80.76,146.37,146.27,9.15337233]
[1768412290434,6.148,146.39,146.29,6.1519]
[1768412291337,6.1485,146.38,146.29,6.1519]
[1768412292034,5.34191443,146.39,146.27,9.15337233]
[1768412293137,6.1493,146.36,146.27,3.00067233]
[1768412293537,5.34191443,146.39,146.27,3.00067233]
[1768412294634,6.1489,146.37,146.27,9.15347233]
[1768412296243,6.1489,146.37,146.28,6.1524]
[1768412296645,80.76,146.38,146.28,6.1524]
[1768412297744,86.9085,146.38,146.28,6.1524]
[1768412297947,86.9085,146.38,146.27,3.00067233]
[1768412297948,86.08191443,146.39,146.29,3.00067233]
[1768412298646,80.74,146.4,146.3,9.15227233]
[1768412298848,5.34191443,146.38,146.26,3.00067233]
[1768412299152,100.98721443,146.38,146.26,3.00067233]
[1768412299354,6.1502,146.34,146.26,3.00067233]
[1768412299547,100.98721443,146.38,146.26,3.00067233]
[1768412299847,6.1497,146.35,146.26,9.15397233]
[1768412301153,6.151,146.32,146.22,9.36553275]
[1768412301751,6.1515,146.31,146.22,9.36553275]
[1768412301950,6.1515,146.31,146.22,3.21073275]
[1768412302256,5.34191443,146.32,146.22,3.21073275]
[1768412302852,6.1518,146.3,146.2,6.1556]
[1768412303255,6.1518,146.3,146.2,9.36633275]
[1768412305960,6.1518,146.3,146.21,3.21073275]
[1768412306149,86.8918,146.3,146.21,3.21073275]
[1768412307156,86.891,146.32,146.22,3.21073275]
[1768412307360,80.74,146.32,146.22,3.21073275]
[1768412307965,6.1518,146.3,146.19,3.21073275]
[1768412308165,5.34191443,146.31,146.19,3.21073275]
[1768412308362,95.6974,146.3,146.19,3.21073275]
[1768412308665,6.1535,146.26,146.19,3.21073275]
[1768412309362,6.1535,146.26,146.18,6.1564]
[1768412309563,6.1539,146.25,146.16,9.36803275]
[1768412310065,6.1539,146.25,146.17,6.1571]
[1768412310667,6.1539,146.25,146.18,6.1567]
[1768412311058,6.1529,146.28,146.18,3.21073275]
[1768412311356,80.76,146.28,146.18,3.21073275]
[1768412311861,80.76,146.28,146.18,9.36713275]
[1768412312165,5.34191443,146.27,146.15,3.21073275]
[1768412313568,6.1537,146.26,146.16,6.1572]
[1768412313866,5.34191443,146.27,146.16,6.1572]
[1768412314764,6.1543,146.24,146.16,6.1572]
[1768412315859,5.34191443,146.27,146.16,3.21073275]
[1768412316055,86.10191443,146.27,146.16,3.21073275]
[1768412317360,86.10191443,146.27,146.13,3.21073275]
[1768412317361,5.34191443,146.27,146.13,3.21073275]
[1768412317669,5.34191443,146.22,146.13,3.21073275]
[1768412318071,86.9347,146.23,146.13,3.21073275]
[1768412318568,86.9347,146.23,146.14,6.1583]
[1768412319963,6.1553,146.22,146.13,3.21073275]
[1768412320171,80.78,146.23,146.13,3.21073275]
[1768412320762,6.1556,146.21,146.13,3.21073275]
[1768412322168,6.1556,146.21,146.13,9.36943275]
[1768412324163,6.1556,146.21,146.14,6.1584]
[1768412326171,86.935,146.23,146.14,6.1584]
[1768412326365,80.78,146.23,146.14,6.1584]
[1768412326876,80.78,146.23,146.15,6.1579]
[1768412327174,6.1545,146.24,146.15,3.21073275]
[1768412327775,6.1545,146.24,146.16,9.36823275]
[1768412328268,6.0945,146.24,146.16,9.36823275]
[1768412329368,86.14191443,146.25,146.17,6.157]
[1768412329567,5.34191443,146.25,146.17,6.157]
[1768412329967,86.9537,146.26,146.17,9.36773275]
[1768412331173,86.9537,146.26,146.18,6.1567]
[1768412331562,80.8,146.26,146.19,6.1563]
[1768412331762,6.1529,146.28,146.19,6.1563]
[1768412332170,6.153,146.27,146.15,95.7881]
[1768412332372,8.68763919,146.23,146.11,3.2148575]
[1768412332673,89.48763919,146.23,146.11,3.2148575]
[1768412332867,6.1561,146.2,146.11,3.2148575]
[1768412333170,95.7488,146.22,146.11,3.2148575]
[1768412333766,95.7488,146.22,146.03,104.55523919]
[1768412333767,6.1572,146.17,146.08,3.2148575]
[1768412334167,95.7647,146.2,146.08,3.2148575]
[1768412334375,6.1569,146.18,146.09,3.2148575]
[1768412335479,6.1561,146.2,146.1,3.2148575]
[1768412336879,6.1561,146.2,146.1,9.3747575]
[1768412338780,86.9554,146.22,146.11,3.2148575]
[1768412339181,80.8,146.22,146.11,3.2148575]
[1768412340084,104.45683919,146.19,146.06,3.2148575]
[1768412340286,8.68763919,146.19,146.06,3.2148575]
[1768412340579,95.7796,146.17,146.06,3.2148575]
[1768412340780,80.82,146.16,146.03,3.2148575]
[1768412340988,95.7726,146.18,146.04,3.2148575]
[1768412341181,95.7808,146.17,146.05,3.2148575]
[1768412342177,80.82,146.19,146.05,3.2148575]
[1768412342777,86.9765,146.19,146.08,3.2148575]
[1768412342978,80.82,146.19,146.08,3.2148575]
[1768412343183,80.82,146.19,146.1,3.2148575]
[1768412343890,6.1573,146.17,146.05,3.1548575]
[1768412344289,6.1574,146.17,146.06,6.1616]
[1768412344486,8.68763919,146.18,146.03,95.8687]
[1768412345385,80.82,146.19,146.04,95.8617]
[1768412345587,80.82,146.19,146.05,95.8571]
[1768412345780,80.82,146.19,146.08,6.1606]
[1768412345991,80.82,146.19,146.08,3.2148575]
[1768412346694,86.9765,146.19,146.09,9.3751575]
[1768412346993,80.82,146.19,146.1,3.2148575]
[1768412347492,104.42733919,146.23,146.1,3.2148575]
[1768412347990,6.1556,146.21,146.11,3.2148575]
[1768412348294,6.1548,146.23,146.12,6.159]
[1768412348494,6.1548,146.23,146.13,3.2148575]
[1768412348895,6.1548,146.23,146.13,9.3734575]
[1768412349395,89.50763919,146.25,146.14,3.2148575]
[1768412350790,6.1544,146.24,146.14,9.3729575]
[1768412351492,80.82,146.25,146.14,3.2148575]
[1768412351706,80.82,146.25,146.09,3.2148575]
[1768412351707,8.68763919,146.2,146.09,3.2148575]
[1768412351885,8.68763919,146.23,146.1,3.2148575]
[1768412352501,185.23763919,146.25,146.1,3.2148575]
[1768412352996,6.1552,146.22,146.12,9.3738575]
[1768412353186,95.7351,146.24,146.12,9.3738575]
[1768412353387,95.7351,146.24,146.12,3.2148575]
[1768412354300,104.43773919,146.22,146.09,3.2148575]
[1768412354604,95.7598,146.2,146.09,3.2148575]
[1768412354804,6.1569,146.18,146.09,3.2148575]
[1768412355298,86.9761,146.2,146.09,3.2148575]
[1768412355898,80.82,146.2,146.11,6.1595]
[1768412356202,80.82,146.2,146.11,9.3743575]
[1768412356497,6.1578,146.16,146.04,3.2148575]
[1768412357200,6.1578,146.16,146.05,3.2148575]
[1768412358304,6.1569,146.18,146.06,3.2148575]
[1768412359299,6.1574,146.17,146.06,3.2148575]
[1768412359801,95.7767,146.18,146.06,3.2148575]
[1768412360000,95.7789,146.17,146.06,3.2148575]
[1768412361600,80.82,146.16,146.06,3.2148575]
[1768412361797,6.1575,146.17,146.06,3.2148575]
[1768412362197,80.82,146.18,146.08,3.06490397]
[1768412363903,86.9769,146.18,146.08,3.06490397]
[1768412364305,6.1569,146.18,146.08,3.06490397]